bitfinex/quotes_BTCUSD_20251027
["timestamp","ask_amount","ask_price","bid_price","bid_amount"]
[1761543087589,0.17317516,115490.0,115480.0,0.48897444]
[1761543087792,0.18854391,115490.0,115480.0,0.463]
[1761543087994,0.18854391,115490.0,115480.0,0.46386659]
[1761543089188,0.19154391,115490.0,115480.0,0.46386659]
[1761543090287,0.62328461,115490.0,115480.0,0.46386659]
[1761543090489,0.17617516,115490.0,115480.0,0.46386659]
[1761543090694,0.19154391,115490.0,115480.0,0.31086659]
[1761543095067,0.17319016,115480.0,115470.0,0.02597743]
[1761543095265,0.17320516,115470.0,115460.0,0.00086659]
[1761543095471,0.18857391,115470.0,115460.0,0.00086659]
[1761543095688,0.18857391,115470.0,115450.0,0.026848]
[1761543095689,0.17322016,115460.0,115450.0,0.026848]
[1761543095900,0.62032961,115460.0,115450.0,0.09076964]
[1761543096110,0.60496086,115460.0,115450.0,0.09076964]
[1761543096309,0.17322016,115460.0,115450.0,0.09076964]
[1761543096551,0.18858891,115460.0,115450.0,0.24376964]
[1761543096712,0.17322016,115460.0,115450.0,0.27995192]
[1761543097132,0.60996086,115460.0,115450.0,0.27995192]
[1761543099919,0.17822016,115460.0,115450.0,0.27995192]
[1761543101167,0.17822016,115460.0,115450.0,0.12695192]
[1761543101363,0.17822016,115460.0,115450.0,0.27995192]
[1761543101364,0.19358891,115460.0,115450.0,0.27995192]
[1761543101578,0.17822016,115460.0,115450.0,0.27995192]
[1761543103140,1.13538691,115460.0,115450.0,0.00095063]
[1761543103373,0.68827746,115460.0,115450.0,0.15308404]
[1761543103817,0.17328019,115420.0,115410.0,0.02685435]
[1761543104032,0.60502089,115420.0,115410.0,0.32555877]
[1761543104462,0.60502089,115420.0,115410.0,0.29957101]
[1761543104683,0.17328019,115420.0,115410.0,0.33575329]
[1761543105103,0.17328019,115420.0,115410.0,0.154352]
[1761543105104,0.62038964,115420.0,115410.0,0.154352]
[1761543105308,0.60502089,115420.0,115410.0,0.157352]
[1761543105723,0.17328019,115420.0,115410.0,0.157352]
[1761543106176,0.17328019,115420.0,115410.0,0.154352]
[1761543106386,0.19364894,115420.0,115410.0,0.154352]
[1761543106598,0.19564894,115420.0,115410.0,0.154352]
[1761543106769,0.17528019,115420.0,115410.0,0.154352]
[1761543106985,0.18864894,115420.0,115410.0,0.154352]
[1761543107392,0.19064894,115420.0,115410.0,0.154352]
[1761543107823,0.17528019,115420.0,115410.0,0.154352]
[1761543108121,0.17528019,115420.0,115410.0,0.15848541]
[1761543108122,0.62238964,115420.0,115410.0,0.15848541]
[1761543108328,0.60702089,115420.0,115410.0,0.15848541]
[1761543109190,0.60502089,115420.0,115410.0,0.15848541]
[1761543109575,0.60802089,115420.0,115410.0,0.15848541]
[1761543109879,0.66273775,115420.0,115410.0,0.15348541]
[1761543110686,0.17628019,115420.0,115410.0,0.15348541]
[1761543110862,0.17628019,115420.0,115410.0,0.154352]
[1761543111245,0.17928019,115420.0,115410.0,0.154352]
[1761543111440,0.19464894,115420.0,115410.0,0.154352]
[1761543111647,0.6811065,115420.0,115410.0,0.094352]
[1761543112003,0.66573775,115420.0,115410.0,0.094352]
[1761543112420,0.17928019,115420.0,115410.0,0.094352]
[1761543112623,0.6811065,115420.0,115410.0,0.094352]
[1761543112827,0.66573775,115420.0,115410.0,0.094352]
[1761543113274,0.17928019,115420.0,115410.0,0.094352]
[1761543113444,0.17928019,115420.0,115410.0,0.15390659]
[1761543113445,0.6811065,115420.0,115410.0,0.15390659]
[1761543113681,0.66573775,115420.0,115410.0,0.15390659]
[1761543114703,0.66573775,115420.0,115410.0,0.00086659]
[1761543114907,0.66573775,115420.0,115410.0,0.15390659]
[1761543115417,0.17928019,115420.0,115410.0,0.15390659]
[1761543115626,0.6811065,115420.0,115410.0,0.15390659]
[1761543115929,0.66573775,115420.0,115410.0,0.15390659]
[1761543116517,0.66573775,115420.0,115410.0,0.00086659]
[1761543116692,0.66573775,115420.0,115410.0,0.15390659]
[1761543116893,0.17928019,115420.0,115410.0,0.15390659]
[1761543117144,0.006,115420.0,115410.0,0.45320308]
[1761543117377,0.17928019,115420.0,115410.0,0.93966064]
[1761543118057,0.17628019,115420.0,115410.0,0.93966064]
[1761543118241,0.003,115420.0,115410.0,0.93966064]
[1761543118454,0.17326518,115430.0,115420.0,0.20946247]
[1761543118660,0.18191267,115440.0,115430.0,0.00086659]
[1761543118865,0.18191267,115440.0,115430.0,0.15390659]
[1761543120338,0.18491267,115440.0,115430.0,0.15390659]
[1761543120959,0.18491267,115440.0,115430.0,0.45317306]
[1761543121154,0.18491267,115440.0,115430.0,0.76636544]
[1761543121602,0.18491267,115440.0,115430.0,0.76836544]
[1761543121806,0.18491267,115440.0,115430.0,0.28190788]
[1761543125211,0.003,115440.0,115430.0,0.94163062]
[1761543126537,0.003,115440.0,115430.0,1.28163062]
[1761543127817,0.003,115440.0,115430.0,1.27963062]
[1761543128032,0.003,115440.0,115430.0,0.79317306]
[1761543128172,0.18188116,115460.0,115450.0,0.03618228]
[1761543128382,0.18188116,115460.0,115450.0,0.33440129]
[1761543129414,0.18436615,115460.0,115450.0,0.33440129]
[1761543132406,0.67082371,115460.0,115450.0,0.18140129]
[1761543132610,0.67082371,115460.0,115450.0,0.20926659]
[1761543132936,0.18436615,115460.0,115450.0,0.2084]
[1761543133136,0.67082371,115460.0,115450.0,0.20922659]
[1761543133529,0.67082371,115460.0,115450.0,0.05626659]
[1761543133737,0.67082371,115460.0,115450.0,0.20836]
[1761543134968,0.67082371,115460.0,115450.0,0.0554]
[1761543135171,0.67082371,115460.0,115450.0,0.20836]
[1761543136437,0.18436615,115460.0,115450.0,0.20836]
[1761543136676,0.67082371,115460.0,115450.0,0.20836]
[1761543138128,0.18436615,115460.0,115450.0,0.20836]
[1761543138305,0.67082371,115460.0,115450.0,0.20836]
[1761543139882,0.18436615,115460.0,115450.0,0.20836]
[1761543140133,0.67082371,115460.0,115450.0,0.20836]
[1761543140549,0.18436615,115460.0,115450.0,0.20836]
[1761543140731,0.67082371,115460.0,115450.0,0.20836]
[1761543143724,0.67082371,115460.0,115450.0,0.0554]
[1761543143928,0.67082371,115460.0,115450.0,0.20836]
[1761543145707,0.18436615,115460.0,115450.0,0.20922659]
[1761543145912,0.67082371,115460.0,115450.0,0.20922659]
[1761543147339,0.18436615,115460.0,115450.0,0.20922659]
[1761543147579,0.67082371,115460.0,115450.0,0.20922659]
[1761543147963,0.18436615,115460.0,115450.0,0.20922659]
[1761543148173,0.67082371,115460.0,115450.0,0.20922659]
[1761543148389,0.18436615,115460.0,115450.0,0.20922659]
[1761543148599,0.67082371,115460.0,115450.0,0.20922659]
[1761543150275,0.67082371,115460.0,115450.0,0.05626659]
[1761543150633,0.67082371,115460.0,115450.0,0.20918659]
[1761543155261,0.18436615,115460.0,115450.0,0.20918659]
[1761543155464,0.67082371,115460.0,115450.0,0.20918659]
[1761543158292,0.18436615,115460.0,115450.0,0.20918659]
[1761543158915,0.18436615,115460.0,115450.0,0.33518788]
[1761543162262,0.67082371,115460.0,115450.0,0.33518788]
[1761543164346,0.18436615,115460.0,115450.0,0.33518788]
[1761543167200,0.7552266,115460.0,115450.0,0.18226788]
[1761543167418,0.67082371,115460.0,115450.0,0.33514788]
[1761543168208,0.67082371,115460.0,115450.0,0.2989656]
[1761543169172,0.67082371,115460.0,115450.0,0.18226788]
[1761543169352,0.67082371,115460.0,115450.0,0.05626659]
[1761543169558,0.67082371,115460.0,115450.0,0.20914659]
[1761543171937,0.61643846,115460.0,115450.0,0.20914659]
[1761543172143,0.17323516,115450.0,115440.0,0.00086659]
[1761543172375,0.62067622,115450.0,115440.0,0.20914659]
[1761543172574,0.60530747,115450.0,115440.0,0.00086659]
[1761543172963,0.60530747,115450.0,115440.0,0.20914659]
[1761543173570,0.60730747,115450.0,115440.0,0.20914659]
[1761543174183,0.60730747,115450.0,115430.0,0.37618228]
[1761543174184,0.17325017,115440.0,115430.0,0.34]
[1761543174380,0.62069123,115440.0,115430.0,0.00086659]
[1761543174727,0.60532248,115440.0,115430.0,0.20914659]
[1761543174952,0.60532248,115440.0,115430.0,0.00086659]
[1761543175164,0.60532248,115440.0,115430.0,0.20914659]
[1761543176047,0.60732248,115440.0,115430.0,0.20914659]
[1761543176260,0.17525017,115440.0,115430.0,0.20914659]
[1761543176469,0.62269123,115440.0,115430.0,0.20914659]
[1761543176688,0.61132248,115440.0,115430.0,0.20914659]
[1761543176895,0.61432248,115440.0,115430.0,0.00086659]
[1761543177291,0.61432248,115440.0,115430.0,0.15374659]
[1761543177505,0.61432248,115440.0,115430.0,0.20914659]
[1761543177698,0.61432248,115440.0,115430.0,0.00086659]
[1761543177906,0.18225017,115440.0,115430.0,0.20914659]
[1761543178117,0.18225017,115440.0,115430.0,0.00086659]
[1761543178290,0.18225017,115440.0,115430.0,0.20914659]
[1761543180178,0.61432248,115440.0,115430.0,0.20914659]
[1761543181193,0.18225017,115440.0,115430.0,0.20914659]
[1761543182491,0.61432248,115440.0,115430.0,0.20914659]
[1761543184918,0.18225017,115440.0,115430.0,0.20914659]
[1761543185146,0.61432248,115440.0,115430.0,0.20914659]
[1761543185914,0.18225017,115440.0,115430.0,0.20914659]
[1761543190924,0.18225017,115440.0,115430.0,0.94048537]
[1761543191129,0.009,115440.0,115430.0,0.84841306]
[1761543191967,0.17323516,115450.0,115430.0,0.84841306]
[1761543192181,0.002,115440.0,115430.0,0.84841306]
[1761543192360,0.003,115440.0,115430.0,0.84841306]
[1761543192940,0.001,115440.0,115430.0,0.84841306]
[1761543194120,0.17425017,115440.0,115430.0,0.84841306]
[1761543195013,0.17625017,115440.0,115430.0,0.84841306]
[1761543195786,0.17625017,115440.0,115430.0,0.87439971]
[1761543196803,0.17625017,115440.0,115430.0,0.66611971]
[1761543197017,0.17625017,115440.0,115430.0,0.70109453]
[1761543197855,0.17625017,115440.0,115430.0,0.87435971]
[1761543198401,0.17625017,115440.0,115430.0,0.49285453]
[1761543198606,0.17625017,115440.0,115430.0,0.70109453]
[1761543206554,0.17625017,115440.0,115430.0,0.64569453]
[1761543206761,0.17625017,115440.0,115430.0,0.70109453]
[1761543207096,0.17625017,115440.0,115430.0,0.87435971]
[1761543209245,0.17625017,115440.0,115430.0,0.49285453]
[1761543209421,0.19161892,115440.0,115430.0,0.70109453]
[1761543209610,0.62369123,115440.0,115430.0,0.54906659]
[1761543209813,0.17625017,115440.0,115430.0,0.54906659]
[1761543210087,0.19161892,115440.0,115430.0,0.54906659]
[1761543215181,0.17625017,115440.0,115430.0,0.84833306]
[1761543215453,0.17625017,115440.0,115430.0,0.87432097]
[1761543223262,0.17625017,115440.0,115430.0,0.49285579]
[1761543223534,0.17625017,115440.0,115430.0,0.87432097]
[1761543223705,0.17625017,115440.0,115430.0,0.49285579]
[1761543223907,0.17625017,115440.0,115430.0,0.64565579]
[1761543224208,0.19161892,115440.0,115430.0,0.70105579]
[1761543224358,0.17625017,115440.0,115430.0,0.70105579]
[1761543224769,0.19161892,115440.0,115430.0,0.49285579]
[1761543224975,0.19161892,115440.0,115430.0,0.70105579]
[1761543227604,0.19161892,115440.0,115430.0,0.49285579]
[1761543227859,0.17625017,115440.0,115430.0,0.70101579]
[1761543228291,0.17625017,115440.0,115430.0,0.3601492]
[1761543228709,0.19161892,115440.0,115430.0,0.3601492]
[1761543228921,0.17625017,115440.0,115430.0,0.23414791]
[1761543230496,0.17625017,115440.0,115430.0,0.02598791]
[1761543230708,0.19161892,115440.0,115430.0,0.23414791]
[1761543230907,0.17625017,115440.0,115430.0,0.23414791]
[1761543232450,0.17625017,115440.0,115430.0,0.02598791]
[1761543232658,0.19161892,115440.0,115430.0,0.23414791]
[1761543232871,0.17625017,115440.0,115430.0,0.23414791]
[1761543233077,0.003,115440.0,115430.0,0.40741309]
[1761543233421,0.17625017,115440.0,115430.0,0.53341438]
[1761543233747,0.17625017,115440.0,115430.0,1.01947207]
[1761543233954,0.17625017,115440.0,115430.0,0.63804689]
[1761543234154,0.17625017,115440.0,115430.0,0.84620689]
[1761543234361,0.17625017,115440.0,115430.0,1.01947207]
[1761543235741,0.003,115440.0,115430.0,1.01947207]
[1761543235944,0.17625017,115440.0,115430.0,1.01947207]
[1761543236773,0.003,115440.0,115430.0,1.21947207]
[1761543236974,0.17625017,115440.0,115430.0,1.55947207]
[1761543237386,0.003,115440.0,115430.0,1.55947207]
[1761543238163,0.17625017,115440.0,115430.0,0.86525438]
[1761543238360,0.17625017,115440.0,115430.0,1.55947207]
[1761543239226,0.17625017,115440.0,115430.0,1.35131207]
[1761543239385,0.17625017,115440.0,115430.0,0.86525438]
[1761543239599,0.17625017,115440.0,115430.0,1.55947207]
[1761543240298,0.003,115440.0,115430.0,1.55947207]
[1761543243122,0.003,115440.0,115430.0,1.07341438]
[1761543243321,0.003,115440.0,115430.0,1.50407207]
[1761543243531,0.003,115440.0,115430.0,1.55947207]
[1761543246822,0.003,115440.0,115430.0,1.35131207]
[1761543247022,0.003,115440.0,115430.0,1.55943207]
[1761543248138,0.17625017,115440.0,115430.0,0.86525438]
[1761543248345,0.17625017,115440.0,115430.0,1.07337438]
[1761543249306,0.17625017,115440.0,115430.0,0.9001092]
[1761543250115,0.17625017,115440.0,115430.0,0.86525438]
[1761543250339,0.17625017,115440.0,115430.0,1.07337438]
[1761543251392,0.17413954,115440.0,115430.0,1.07337438]
[1761543252895,0.17413954,115440.0,115430.0,1.01797438]
[1761543253200,0.17413954,115440.0,115430.0,1.07337438]
[1761543254037,0.66019723,115440.0,115430.0,0.6919892]
[1761543254241,0.66019723,115440.0,115430.0,0.87412129]
[1761543255775,0.17413954,115440.0,115430.0,0.87412129]
[1761543257232,0.17413954,115440.0,115430.0,1.04738647]
[1761543257984,0.17413954,115440.0,115430.0,1.53344416]
[1761543258450,0.00088937,115440.0,115430.0,1.53344416]
[1761543260084,0.17413954,115440.0,115430.0,1.53344416]
[1761543261282,0.17413954,115440.0,115430.0,1.04738647]
[1761543261490,0.17413954,115440.0,115430.0,1.53344416]
[1761543262522,0.17413954,115440.0,115430.0,1.04738647]
[1761543262731,0.00088937,115440.0,115430.0,1.73344416]
[1761543263141,0.00088937,115440.0,115430.0,1.76394537]
[1761543263291,0.00088937,115440.0,115430.0,1.82582018]
[1761543263930,0.00088937,115440.0,115430.0,2.31187787]
[1761543264103,0.00088937,115440.0,115430.0,2.20554418]
[1761543264509,0.00088937,115440.0,115430.0,2.69160187]
[1761543265159,0.03586657,115450.0,115440.0,0.54943245]
[1761543265311,0.03586657,115450.0,115440.0,1.61136684]
[1761543266368,0.03786657,115450.0,115440.0,1.61136684]
[1761543267220,0.03786657,115450.0,115440.0,1.6373467]
[1761543267411,0.03786657,115450.0,115440.0,1.15128901]
[1761543267714,0.03786657,115450.0,115440.0,1.15428901]
[1761543269895,0.03786657,115450.0,115440.0,1.6403467]
[1761543279698,0.03786657,115450.0,115440.0,1.8483867]
[1761543282107,0.03786657,115450.0,115440.0,1.6403467]
[1761543282307,0.03786657,115450.0,115440.0,1.8483867]
[1761543283612,0.03786657,115450.0,115440.0,1.7929867]
[1761543283837,0.03786657,115450.0,115440.0,1.8483867]
[1761543285166,0.03786657,115450.0,115440.0,1.91026151]
[1761543286632,0.03786657,115450.0,115440.0,1.8483867]
[1761543287383,0.03786657,115450.0,115440.0,1.91026151]
[1761543289717,0.03786657,115450.0,115440.0,0.93814613]
[1761543289863,0.03786657,115450.0,115440.0,1.91026151]
[1761543290063,0.03786657,115450.0,115440.0,1.85482151]
[1761543290299,0.03786657,115450.0,115440.0,1.91022151]
[1761543291167,0.03786657,115450.0,115440.0,1.85482151]
[1761543291376,0.03786657,115450.0,115440.0,1.91022151]
[1761543292329,0.03786657,115450.0,115440.0,0.93810613]
[1761543292716,0.03786657,115450.0,115440.0,2.11022151]
[1761543293413,0.03786657,115450.0,115440.0,1.90222151]
[1761543293630,0.03786657,115450.0,115440.0,2.11018151]
[1761543293801,0.03786657,115450.0,115440.0,1.56986318]
[1761543294002,0.03786657,115450.0,115440.0,1.36190318]
[1761543294243,0.03786657,115450.0,115440.0,1.56986318]
[1761543294416,0.03786657,115450.0,115440.0,1.36190318]
[1761543294630,0.03786657,115450.0,115440.0,1.56986318]
[1761543295398,0.03786657,115450.0,115440.0,1.13806613]
[1761543295609,0.03786657,115450.0,115440.0,1.56986318]
[1761543298540,0.03786657,115450.0,115440.0,1.13806613]
[1761543298743,0.03786657,115450.0,115440.0,1.56986318]
[1761543299166,0.11155722,115470.0,115460.0,0.37322016]
[1761543299391,0.11164121,115470.0,115460.0,0.61559917]
[1761543299952,0.11164121,115470.0,115460.0,0.64157673]
[1761543300348,0.11164121,115470.0,115460.0,0.35989885]
[1761543300553,0.11364121,115470.0,115460.0,0.35989885]
[1761543300899,0.54743826,115470.0,115460.0,0.11579657]
[1761543301107,0.17322016,115460.0,115440.0,0.78378748]
[1761543301303,0.17322016,115460.0,115450.0,0.60836137]
[1761543301525,0.17322016,115460.0,115450.0,0.45580137]
[1761543301759,0.17322016,115460.0,115450.0,0.58237901]
[1761543301760,0.18858891,115460.0,115450.0,0.58237901]
[1761543301961,0.17322016,115460.0,115450.0,0.58237901]
[1761543302123,0.17322016,115460.0,115450.0,0.61856129]
[1761543302329,0.17522016,115460.0,115450.0,0.61856129]
[1761543302773,0.17322016,115460.0,115450.0,0.61856129]
[1761543303136,0.17522016,115460.0,115450.0,0.61856129]
[1761543305441,0.17522016,115460.0,115450.0,0.79179645]
[1761543305939,0.17522016,115460.0,115450.0,0.61856129]
[1761543306973,0.17522016,115460.0,115450.0,0.79179645]
[1761543307379,0.20120254,115460.0,115450.0,0.79179645]
[1761543309703,0.02798238,115460.0,115450.0,0.79179645]
[1761543310054,0.20120254,115460.0,115450.0,0.79179645]
[1761543315423,0.17522016,115460.0,115450.0,0.79179645]
[1761543317643,0.002,115460.0,115450.0,0.79179645]
[1761543317850,0.17522016,115460.0,115450.0,0.79179645]
[1761543318055,0.17522016,115460.0,115450.0,0.63923645]
[1761543318278,0.17522016,115460.0,115450.0,0.84719645]
[1761543324413,0.17522016,115460.0,115450.0,0.67396129]
[1761543325640,0.17522016,115460.0,115450.0,0.84719645]
[1761543326803,0.17522016,115460.0,115450.0,0.67396129]
[1761543328930,0.17522016,115460.0,115450.0,0.84719645]
[1761543330816,0.17522016,115460.0,115450.0,0.67396129]
[1761543331021,0.17522016,115460.0,115450.0,0.84719645]
[1761543333497,0.17522016,115460.0,115450.0,0.46600129]
[1761543333708,0.17522016,115460.0,115450.0,0.61852129]
[1761543333907,0.17522016,115460.0,115450.0,0.67392129]
[1761543334544,0.17522016,115460.0,115450.0,0.84715645]
[1761543334809,0.17522016,115460.0,115450.0,0.67392129]
[1761543338246,0.17522016,115460.0,115450.0,0.84715645]
[1761543339533,0.17522016,115460.0,115450.0,0.67392129]
[1761543339744,0.17522016,115460.0,115450.0,0.84715645]
[1761543340732,0.17522016,115460.0,115450.0,0.67388129]
[1761543340877,0.17522016,115460.0,115450.0,0.84711645]
[1761543347005,0.17522016,115460.0,115450.0,0.63923645]
[1761543347211,0.17522016,115460.0,115450.0,0.84711645]
[1761543349616,0.17522016,115460.0,115450.0,0.46600129]
[1761543349835,0.17522016,115460.0,115450.0,0.67388129]
[1761543350732,0.17522016,115460.0,115450.0,0.61848129]
[1761543351038,0.17324549,115450.0,115430.0,0.44380324]
[1761543351241,0.17324549,115450.0,115440.0,0.52140129]
[1761543351440,0.18861424,115450.0,115440.0,0.67388129]
[1761543351738,0.18861424,115450.0,115440.0,0.61848129]
[1761543352386,0.18961424,115450.0,115440.0,0.61848129]
[1761543353086,0.18861424,115450.0,115440.0,0.61848129]
[1761543353262,0.17624549,115450.0,115440.0,0.34]
[1761543353465,0.17624549,115450.0,115440.0,0.49248]
[1761543353862,0.17624549,115450.0,115440.0,0.34]
[1761543354063,0.66236297,115450.0,115440.0,0.49248]
[1761543354270,0.66736297,115450.0,115440.0,0.49248]
[1761543354672,0.66736297,115450.0,115440.0,0.34]
[1761543354873,0.18124549,115450.0,115440.0,0.49248]
[1761543355069,0.66736297,115450.0,115440.0,0.49248]
[1761543355455,0.18124549,115450.0,115440.0,0.49248]
[1761543358609,0.66736297,115450.0,115440.0,0.49248]
[1761543360501,0.17325017,115440.0,115430.0,0.23618228]
[1761543360702,0.17325017,115440.0,115430.0,0.47844129]
[1761543360908,0.65936765,115440.0,115430.0,0.47844129]
[1761543361224,0.17325017,115440.0,115430.0,0.47844129]
[1761543361420,0.6747364,115440.0,115430.0,0.47848129]
[1761543361624,0.17327386,115430.0,115420.0,0.09158228]
[1761543361832,0.17327386,115430.0,115420.0,0.67384129]
[1761543362896,0.17327386,115430.0,115420.0,0.46648628]
[1761543363107,0.17527386,115430.0,115420.0,0.46648628]
[1761543363630,0.17527386,115430.0,115420.0,0.61892628]
[1761543364189,0.17527386,115430.0,115420.0,0.46648628]
[1761543364362,0.17527386,115430.0,115420.0,0.61892628]
[1761543365198,0.19064261,115430.0,115420.0,0.61892628]
[1761543365385,0.17527386,115430.0,115420.0,0.61892628]
[1761543366665,0.17527386,115430.0,115420.0,0.79220647]
[1761543367014,0.17527386,115430.0,115420.0,0.79224647]
[1761543367178,0.17527386,115430.0,115420.0,0.61896628]
[1761543367827,0.17526518,115430.0,115420.0,1.27836395]
[1761543369438,0.17526518,115430.0,115420.0,0.79224647]
[1761543369597,0.17526518,115430.0,115420.0,1.27836395]
[1761543370798,0.17526518,115430.0,115420.0,0.79224647]
[1761543371008,0.17526518,115430.0,115420.0,0.61896628]
[1761543371712,0.17526518,115430.0,115420.0,1.27832395]
[1761543371918,0.17526518,115430.0,115420.0,1.10504376]
[1761543372132,0.17526518,115430.0,115420.0,0.61892628]
[1761543375246,0.19063393,115430.0,115420.0,0.27892628]
[1761543375651,0.67675141,115430.0,115420.0,0.27892628]
[1761543375991,0.67675141,115430.0,115420.0,0.090304]
[1761543375992,0.66138266,115430.0,115420.0,0.090304]
[1761543376191,0.66138266,115430.0,115420.0,0.15292499]
[1761543377179,0.17526518,115430.0,115420.0,0.15292499]
[1761543379312,0.002,115430.0,115420.0,1.15565196]
[1761543379514,0.002,115430.0,115420.0,1.47832395]
[1761543380030,0.002,115430.0,115420.0,1.32588395]
[1761543380235,0.002,115430.0,115420.0,1.53372395]
[1761543381096,0.002,115430.0,115420.0,1.55971069]
[1761543382076,0.002,115430.0,115420.0,0.86575321]
[1761543382323,0.002,115430.0,115420.0,1.55971069]
[1761543382673,0.002,115430.0,115420.0,1.35187069]
[1761543382851,0.002,115430.0,115420.0,1.55971069]
[1761543383053,0.002,115430.0,115420.0,1.07359321]
[1761543383254,0.002,115430.0,115420.0,0.86575321]
[1761543383473,0.002,115430.0,115420.0,1.07359321]
[1761543383675,0.002,115430.0,115420.0,1.55971069]
[1761543384893,0.002,115430.0,115420.0,1.35187069]
[1761543385158,0.002,115430.0,115420.0,1.55971069]
[1761543385356,0.002,115430.0,115420.0,2.04582817]
[1761543385560,0.002,115430.0,115420.0,2.72391027]
[1761543385862,0.1818628,115490.0,115470.0,0.17320183]
[1761543386047,0.1818628,115490.0,115480.0,0.2957603]
[1761543386224,0.1818628,115490.0,115480.0,0.27844129]
[1761543387181,0.18194681,115490.0,115480.0,0.12600129]
[1761543387362,0.18194681,115490.0,115480.0,0.27844129]
[1761543387570,0.18694681,115490.0,115480.0,0.27844129]
[1761543387712,0.18894681,115490.0,115480.0,0.27844129]
[1761543390487,0.67506429,115490.0,115480.0,0.12600129]
[1761543390688,0.67506429,115490.0,115480.0,0.27840129]
[1761543392377,0.67506429,115490.0,115480.0,0.12600129]
[1761543392505,0.67506429,115490.0,115480.0,0.27840129]
[1761543393345,0.67506429,115490.0,115470.0,0.25458172]
[1761543393346,0.17319016,115480.0,115470.0,0.26478744]
[1761543393556,0.17319016,115480.0,115470.0,0.33380129]
[1761543394819,0.65930764,115480.0,115470.0,0.08981901]
[1761543395025,0.17322016,115460.0,115450.0,0.06410029]
[1761543395195,0.17322016,115460.0,115450.0,0.24221901]
[1761543395403,0.17322016,115460.0,115450.0,0.67380129]
[1761543395814,0.17322016,115460.0,115450.0,0.08981901]
[1761543396027,0.17322016,115460.0,115450.0,0.24221901]
[1761543396234,0.17422016,115460.0,115450.0,0.24221901]
[1761543396793,0.17322016,115460.0,115450.0,0.27840129]
[1761543397232,0.17522016,115460.0,115450.0,0.27840129]
[1761543397579,0.17323516,115450.0,115440.0,0.68611748]
[1761543397785,0.17323516,115450.0,115440.0,1.49698666]
[1761543397990,0.17522016,115460.0,115440.0,2.01928642]
[1761543398198,0.17522016,115460.0,115450.0,0.62944228]
[1761543398404,0.17322016,115460.0,115450.0,0.61211877]
[1761543398601,0.17322016,115460.0,115450.0,0.12600129]
[1761543398860,0.17330414,115460.0,115450.0,0.1433248]
[1761543399057,0.17330414,115460.0,115450.0,0.62944228]
[1761543399257,0.17330414,115460.0,115450.0,0.12600129]
[1761543399406,0.17330414,115460.0,115450.0,0.1433248]
[1761543399601,0.17930414,115460.0,115450.0,0.62944228]
[1761543399806,0.17930414,115460.0,115450.0,0.12600129]
[1761543400068,0.17930414,115460.0,115450.0,0.62944228]
[1761543400296,0.17930414,115460.0,115450.0,0.61211877]
[1761543403083,0.17930414,115460.0,115450.0,0.12600129]
[1761543403282,0.17930414,115460.0,115450.0,0.62944228]
[1761543403595,0.17930414,115460.0,115450.0,0.61211877]
[1761543404430,0.17930414,115460.0,115450.0,0.12600129]
[1761543404642,0.17930414,115460.0,115450.0,0.27840129]
[1761543405194,0.17323516,115450.0,115440.0,1.02611748]
[1761543405398,0.17323516,115450.0,115440.0,1.53316894]
[1761543405790,0.17323516,115450.0,115440.0,1.04705146]
[1761543406206,0.17323516,115450.0,115440.0,1.53316894]
[1761543406458,0.17523516,115450.0,115440.0,1.04705146]
[1761543406662,0.17823516,115450.0,115440.0,1.53316894]
[1761543408031,0.17823516,115450.0,115440.0,0.87380129]
[1761543408232,0.17823516,115450.0,115440.0,0.67380129]
[1761543408529,0.17823516,115450.0,115440.0,0.34]
[1761543408683,0.17823516,115450.0,115440.0,0.4924]
[1761543410949,0.17823516,115450.0,115440.0,0.34]
[1761543411151,0.67972139,115450.0,115440.0,0.4924]
[1761543411348,0.17823516,115450.0,115440.0,0.4924]
[1761543421855,0.17823516,115450.0,115440.0,0.66565017]
[1761543422031,0.17823516,115450.0,115440.0,0.4924]
[1761543424260,0.17823516,115450.0,115440.0,0.34]
[1761543424469,0.17823516,115450.0,115440.0,0.4924]
[1761543425871,0.19360391,115450.0,115440.0,0.4924]
[1761543426392,0.17823516,115450.0,115440.0,0.4924]
[1761543430405,0.17823516,115450.0,115440.0,0.66565017]
[1761543430607,0.17325017,115440.0,115430.0,0.2]
[1761543430942,0.17326518,115430.0,115420.0,0.03618228]
[1761543431146,0.17326518,115430.0,115420.0,0.12600129]
[1761543431147,0.18863393,115430.0,115420.0,0.12600129]
[1761543431327,0.18863393,115430.0,115420.0,0.27840129]
[1761543431520,0.1732952,115410.0,115400.0,0.20028766]
[1761543431669,0.1732952,115410.0,115400.0,0.29010667]
[1761543431891,0.1732952,115410.0,115400.0,0.44250667]
[1761543432090,0.1722952,115410.0,115400.0,0.44250667]
[1761543432311,0.18766395,115410.0,115400.0,0.09010667]
[1761543432544,0.18766395,115410.0,115400.0,0.24250667]
[1761543432740,0.1722952,115410.0,115400.0,0.24399166]
[1761543433111,0.1722952,115410.0,115400.0,0.27917394]
[1761543433571,0.1742952,115410.0,115400.0,0.61917394]
[1761543433985,0.002,115410.0,115400.0,0.61917394]
[1761543434202,0.1752952,115410.0,115400.0,0.61917394]
[1761543434402,0.1752952,115410.0,115400.0,0.79248416]
[1761543434602,0.1752952,115410.0,115400.0,1.22453262]
[1761543435148,0.002,115410.0,115400.0,1.22453262]
[1761543435359,0.1792952,115410.0,115400.0,1.22453262]
[1761543436180,0.1792952,115410.0,115400.0,1.0512224]
[1761543436517,0.1792952,115410.0,115400.0,1.22453262]
[1761543437142,0.006,115410.0,115400.0,1.22453262]
[1761543437353,0.006,115410.0,115400.0,1.65658108]
[1761543438511,0.002,115410.0,115400.0,1.65658108]
[1761543438721,0.18191267,115440.0,115420.0,0.37327184]
[1761543438975,0.18191267,115440.0,115430.0,0.27840129]
[1761543439923,0.004,115440.0,115430.0,0.79166647]
[1761543440154,0.006,115440.0,115430.0,1.42371493]
[1761543440386,0.002,115440.0,115430.0,1.42371493]
[1761543440622,0.00866175,115450.0,115440.0,0.54943245]
[1761543440783,0.00866175,115450.0,115440.0,0.63925146]
[1761543441762,8.396e-05,115450.0,115440.0,1.07129992]
[1761543441966,8.396e-05,115450.0,115440.0,0.63925146]
[1761543442399,0.00408396,115450.0,115440.0,0.63925146]
[1761543442599,0.17731912,115450.0,115440.0,0.63925146]
[1761543443219,0.17731912,115450.0,115440.0,0.46600129]
[1761543443425,0.17931912,115450.0,115440.0,0.63925146]
[1761543444055,0.17931912,115450.0,115440.0,0.46600129]
[1761543444458,0.17931912,115450.0,115440.0,0.63925146]
[1761543448850,0.17931912,115450.0,115440.0,0.4924]
[1761543448851,0.19468787,115450.0,115440.0,0.4924]
[1761543448990,0.17931912,115450.0,115440.0,0.4924]
[1761543451567,0.00608396,115450.0,115440.0,1.22369992]
[1761543452835,0.17931912,115450.0,115440.0,1.22369992]
[1761543454250,0.17931912,115450.0,115440.0,0.79165146]
[1761543455962,0.00608396,115450.0,115440.0,0.79165146]
[1761543458039,0.00608396,115450.0,115440.0,1.22369992]